[Event "Titled Tuesday Blitz February 15 Early 2022"]
[White "Musovic, Armin"]
[Black "Moskvin, Anatoly"]
[WhiteFideId "939935"]
[BlackFideId "24199990"]
[WhiteElo "2250"]
[BlackElo "2079"]
[Result "1-0"]
[Round "09"]
[TimeControl "180+1"]
[Date "2022.02.15"]
[WhiteClock "0:00:07"]
[BlackClock "0:00:05"]

1. a3 {[%clk 0:03:00]}  e5 {[%clk 0:02:54]} 2. Nc3 {[%clk 0:03:01]}  d5 {[%clk 0:02:54]} 3. d4 {[%clk 0:03:02]}  e4 {[%clk 0:02:53]} 4. Bf4 {[%clk 0:03:00]}  f5 {[%clk 0:02:53]} 5. Be5 {[%clk 0:03:01]}  Nf6 {[%clk 0:02:45]} 6. Bxf6 {[%clk 0:03:00]}  gxf6 {[%clk 0:02:46]} 7. e3 {[%clk 0:03:01]}  Be6 {[%clk 0:02:42]} 8. Qh5+ {[%clk 0:03:00]}  Kd7 {[%clk 0:02:42]} 9. Nge2 {[%clk 0:02:53]}  Bd6 {[%clk 0:02:37]} 10. g3 {[%clk 0:02:49]}  Nc6 {[%clk 0:02:30]} 11. Bh3 {[%clk 0:02:44]}  Ne7 {[%clk 0:02:31]} 12. Nf4 {[%clk 0:02:21]}  Bxf4 {[%clk 0:02:26]} 13. gxf4 {[%clk 0:02:22]}  Qe8 {[%clk 0:02:24]} 14. Qh4 {[%clk 0:02:22]}  Qf7 {[%clk 0:02:20]} 15. O-O-O {[%clk 0:02:22]}  h5 {[%clk 0:02:20]} 16. f3 {[%clk 0:02:05]}  Rag8 {[%clk 0:01:45]} 17. Rhf1 {[%clk 0:01:54]}  exf3 {[%clk 0:01:23]} 18. Rxf3 {[%clk 0:01:40]}  c6 {[%clk 0:01:04]} 19. Na4 {[%clk 0:01:05]}  Kc7 {[%clk 0:00:56]} 20. Qe1 {[%clk 0:01:02]}  b6 {[%clk 0:00:54]} 21. Qb4 {[%clk 0:00:58]}  Nc8 {[%clk 0:00:50]} 22. b3 {[%clk 0:00:56]}  a5 {[%clk 0:00:42]} 23. Qe1 {[%clk 0:00:54]}  Nd6 {[%clk 0:00:38]} 24. Nc3 {[%clk 0:00:47]}  b5 {[%clk 0:00:35]} 25. Kb2 {[%clk 0:00:43]}  Ra8 {[%clk 0:00:34]} 26. Qh4 {[%clk 0:00:37]}  b4 {[%clk 0:00:32]} 27. axb4 {[%clk 0:00:36]}  axb4 {[%clk 0:00:33]} 28. Na2 {[%clk 0:00:37]}  Kb6 {[%clk 0:00:26]} 29. Nxb4 {[%clk 0:00:36]}  Qa7 {[%clk 0:00:26]} 30. c3 {[%clk 0:00:21]}  Ne4 {[%clk 0:00:22]} 31. Rff1 {[%clk 0:00:19]}  Qa3+ {[%clk 0:00:21]} 32. Kc2 {[%clk 0:00:19]}  c5 {[%clk 0:00:11]} 33. dxc5+ {[%clk 0:00:20]}  Nxc5 {[%clk 0:00:07]} 34. Rb1 {[%clk 0:00:20]}  Rhc8 {[%clk 0:00:05]} 35. Qxf6 {[%clk 0:00:20]}  Qxb4 {[%clk 0:00:04]} 36. Rg1 {[%clk 0:00:12]}  Rc6 {[%clk 0:00:03]} 37. Qd4 {[%clk 0:00:12]}  Qxd4 {[%clk 0:00:02]} 38. exd4 {[%clk 0:00:12]}  Ne4 {[%clk 0:00:03]} 39. c4 {[%clk 0:00:12]}  dxc4 {[%clk 0:00:03]} 40. bxc4+ {[%clk 0:00:13]}  Kc7 {[%clk 0:00:04]} 41. c5 {[%clk 0:00:13]}  Rc8 {[%clk 0:00:03]} 42. Rg7+ {[%clk 0:00:12]}  Kd8 {[%clk 0:00:03]} 43. Rbg1 {[%clk 0:00:12]}  Nxc5 {[%clk 0:00:04]} 44. dxc5 {[%clk 0:00:12]}  Rxc5+ {[%clk 0:00:05]} 45. Kd3 {[%clk 0:00:13]}  Rc3+ {[%clk 0:00:05]} 46. Kd4 {[%clk 0:00:14]}  R8c4+ {[%clk 0:00:04]} 47. Ke5 {[%clk 0:00:15]}  Re3+ {[%clk 0:00:05]} 48. Kf6 {[%clk 0:00:15]}  Rc6 {[%clk 0:00:05]} 49. Bxf5 {[%clk 0:00:14]}  Bd7+ {[%clk 0:00:05]} 50. Kg5 {[%clk 0:00:12]}  Bxf5 {[%clk 0:00:05]} 51. Kxf5 {[%clk 0:00:12]}  Rc5+ {[%clk 0:00:06]} 52. Kg6 {[%clk 0:00:11]}  Rf3 {[%clk 0:00:06]} 53. Rd1+ {[%clk 0:00:09]}  Kc8 {[%clk 0:00:05]} 54. Re1 {[%clk 0:00:08]}  Kd8 {[%clk 0:00:05]} 55. Ra1 {[%clk 0:00:08]}  Rc6+ {[%clk 0:00:05]} 56. Kh7 {[%clk 0:00:07]}  Rc8 {[%clk 0:00:02]} 57. Rg8+ {[%clk 0:00:06]}  Kd7 {[%clk 0:00:02]} 58. Rd1+ {[%clk 0:00:06]}  Kc7 {[%clk 0:00:01]} 59. Rc1+ {[%clk 0:00:06]}  Kd6 {[%clk 0:00:02]} 60. Rcxc8 {[%clk 0:00:06]}  Rxf4 {[%clk 0:00:03]} 61. Rcf8 {[%clk 0:00:07]}  Rh4 {[%clk 0:00:03]} 62. Rf2 {[%clk 0:00:06]}  Ke6 {[%clk 0:00:03]} 63. Rg1 {[%clk 0:00:06]}  Rh3 {[%clk 0:00:03]} 64. Re1+ {[%clk 0:00:06]}  Kd5 {[%clk 0:00:03]} 65. Rd2+ {[%clk 0:00:06]}  Kc4 {[%clk 0:00:04]} 66. Rc1+ {[%clk 0:00:07]}  Kb3 {[%clk 0:00:05]} 67. Kh6 {[%clk 0:00:06]}  Rc3 {[%clk 0:00:04]} 68. Rxc3+ {[%clk 0:00:06]}  Kxc3 {[%clk 0:00:05]} 69. Rg2 {[%clk 0:00:07]} 1-0


[Site "https://www.chess.com"]

[Event "Titled Tuesday Blitz February 15 Early 2022"]
[White "Nadeev, Sergey"]
[Black "Van den Dikkenberg, Erik"]
[WhiteFideId "4180038"]
[BlackFideId "1005880"]
[WhiteElo "2369"]
[BlackElo "2118"]
[Result "1-0"]
[Round "09"]
[TimeControl "180+1"]
[Date "2022.02.15"]
[WhiteClock "0:00:25"]
[BlackClock "0:00:06"]

1. e4 {[%clk 0:03:00]}  c5 {[%clk 0:02:59]} 2. Nf3 {[%clk 0:03:00]}  d6 {[%clk 0:03:00]} 3. d4 {[%clk 0:03:00]}  cxd4 {[%clk 0:03:01]} 4. Nxd4 {[%clk 0:03:01]}  Nf6 {[%clk 0:03:01]} 5. Nc3 {[%clk 0:03:01]}  a6 {[%clk 0:03:02]} 6. Bg5 {[%clk 0:03:01]}  e6 {[%clk 0:03:03]} 7. f4 {[%clk 0:03:02]}  Nc6 {[%clk 0:03:02]} 8. Qd2 {[%clk 0:02:57]}  h6 {[%clk 0:03:02]} 9. Bxf6 {[%clk 0:02:55]}  Qxf6 {[%clk 0:03:02]} 10. Nf3 {[%clk 0:02:54]}  Qd8 {[%clk 0:02:56]} 11. O-O-O {[%clk 0:02:53]}  Qb6 {[%clk 0:02:53]} 12. Bc4 {[%clk 0:02:44]}  Be7 {[%clk 0:02:53]} 13. g4 {[%clk 0:02:42]}  Qc5 {[%clk 0:02:43]} 14. Bb3 {[%clk 0:02:40]}  b5 {[%clk 0:02:43]} 15. Rhe1 {[%clk 0:02:36]}  a5 {[%clk 0:02:36]} 16. a3 {[%clk 0:02:19]}  a4 {[%clk 0:02:31]} 17. Ba2 {[%clk 0:02:19]}  b4 {[%clk 0:02:31]} 18. axb4 {[%clk 0:01:34]}  Nxb4 {[%clk 0:02:05]} 19. Qd4 {[%clk 0:01:33]}  Nxa2+ {[%clk 0:02:03]} 20. Nxa2 {[%clk 0:01:34]}  a3 {[%clk 0:01:36]} 21. Qxc5 {[%clk 0:01:20]}  axb2+ {[%clk 0:01:35]} 22. Kxb2 {[%clk 0:01:21]}  dxc5 {[%clk 0:01:35]} 23. c4 {[%clk 0:01:09]}  O-O {[%clk 0:01:33]} 24. Nc3 {[%clk 0:01:08]}  Ba6 {[%clk 0:01:27]} 25. Nd2 {[%clk 0:00:57]}  Rfb8+ {[%clk 0:01:22]} 26. Kc2 {[%clk 0:00:57]}  Bh4 {[%clk 0:01:10]} 27. Rf1 {[%clk 0:00:56]}  Rd8 {[%clk 0:01:01]} 28. Nf3 {[%clk 0:00:43]}  Bf6 {[%clk 0:00:54]} 29. e5 {[%clk 0:00:43]}  Be7 {[%clk 0:00:54]} 30. Rxd8+ {[%clk 0:00:43]}  Rxd8 {[%clk 0:00:52]} 31. Nb5 {[%clk 0:00:42]}  Rb8 {[%clk 0:00:44]} 32. Rb1 {[%clk 0:00:40]}  Rd8 {[%clk 0:00:37]} 33. Nd2 {[%clk 0:00:39]}  Kh7 {[%clk 0:00:25]} 34. Nc7 {[%clk 0:00:30]}  Bc8 {[%clk 0:00:18]} 35. Rb8 {[%clk 0:00:20]}  Bd7 {[%clk 0:00:17]} 36. Rxd8 {[%clk 0:00:20]}  Bxd8 {[%clk 0:00:18]} 37. Nb5 {[%clk 0:00:21]}  Bc6 {[%clk 0:00:16]} 38. Kd3 {[%clk 0:00:21]}  Be7 {[%clk 0:00:14]} 39. Ne4 {[%clk 0:00:21]}  Bxe4+ {[%clk 0:00:14]} 40. Kxe4 {[%clk 0:00:22]}  Kg8 {[%clk 0:00:14]} 41. f5 {[%clk 0:00:21]}  Kf8 {[%clk 0:00:14]} 42. fxe6 {[%clk 0:00:21]}  fxe6 {[%clk 0:00:14]} 43. Nc7 {[%clk 0:00:22]}  Kf7 {[%clk 0:00:15]} 44. h3 {[%clk 0:00:22]}  g6 {[%clk 0:00:14]} 45. Kf4 {[%clk 0:00:20]}  Bg5+ {[%clk 0:00:13]} 46. Ke4 {[%clk 0:00:20]}  Be7 {[%clk 0:00:13]} 47. Nb5 {[%clk 0:00:21]}  Ke8 {[%clk 0:00:12]} 48. Nc3 {[%clk 0:00:20]}  Kf7 {[%clk 0:00:12]} 49. Kd3 {[%clk 0:00:20]}  Bg5 {[%clk 0:00:11]} 50. Ne4 {[%clk 0:00:20]}  Be7 {[%clk 0:00:11]} 51. Kc3 {[%clk 0:00:19]}  Ke8 {[%clk 0:00:10]} 52. Kb3 {[%clk 0:00:20]}  Kd7 {[%clk 0:00:10]} 53. Ka4 {[%clk 0:00:21]}  Kc6 {[%clk 0:00:10]} 54. Ka5 {[%clk 0:00:21]}  h5 {[%clk 0:00:10]} 55. gxh5 {[%clk 0:00:20]}  gxh5 {[%clk 0:00:11]} 56. Ng3 {[%clk 0:00:21]}  h4 {[%clk 0:00:10]} 57. Ne4 {[%clk 0:00:21]}  Kc7 {[%clk 0:00:07]} 58. Kb5 {[%clk 0:00:21]}  Kd7 {[%clk 0:00:07]} 59. Nxc5+ {[%clk 0:00:21]}  Kc7 {[%clk 0:00:06]} 60. Nxe6+ {[%clk 0:00:21]}  Kd7 {[%clk 0:00:07]} 61. Nd4 {[%clk 0:00:21]}  Bg5 {[%clk 0:00:06]} 62. c5 {[%clk 0:00:21]}  Be3 {[%clk 0:00:06]} 63. c6+ {[%clk 0:00:21]}  Kc7 {[%clk 0:00:06]} 64. Nf5 {[%clk 0:00:22]}  Bf4 {[%clk 0:00:05]} 65. e6 {[%clk 0:00:22]}  Bd6 {[%clk 0:00:05]} 66. e7 {[%clk 0:00:22]}  Bxe7 {[%clk 0:00:05]} 67. Nxe7 {[%clk 0:00:23]}  Kb8 {[%clk 0:00:04]} 68. Kb6 {[%clk 0:00:23]}  Ka8 {[%clk 0:00:04]} 69. Nd5 {[%clk 0:00:24]}  Kb8 {[%clk 0:00:04]} 70. Kc5 {[%clk 0:00:23]}  Kc8 {[%clk 0:00:05]} 71. Kd6 {[%clk 0:00:24]}  Kd8 {[%clk 0:00:05]} 72. c7+ {[%clk 0:00:24]}  Kc8 {[%clk 0:00:05]} 73. Ne7+ {[%clk 0:00:25]}  Kb7 {[%clk 0:00:06]} 74. c8=Q+ {[%clk 0:00:25]} 1-0


[Site "https://www.chess.com"]

[Event "Titled Tuesday Blitz February 15 Early 2022"]
[White "Navara, David"]
[Black "Hess, Robert"]
[WhiteFideId "309095"]
[BlackFideId "2022036"]
[WhiteElo "2686"]
[BlackElo "2557"]
[Result "1-0"]
[Round "09"]
[TimeControl "180+1"]
[Date "2022.02.15"]
[WhiteClock "0:01:20"]
[BlackClock "0:00:07"]

1. e4 {[%clk 0:03:00]}  g6 {[%clk 0:03:00]} 2. d4 {[%clk 0:03:01]}  Bg7 {[%clk 0:03:00]} 3. Nc3 {[%clk 0:03:01]}  e6 {[%clk 0:03:01]} 4. Nf3 {[%clk 0:02:55]}  Ne7 {[%clk 0:03:01]} 5. h4 {[%clk 0:02:54]}  h6 {[%clk 0:03:01]} 6. Bf4 {[%clk 0:02:28]}  d6 {[%clk 0:03:00]} 7. Qd2 {[%clk 0:02:28]}  a6 {[%clk 0:02:59]} 8. O-O-O {[%clk 0:02:17]}  Nd7 {[%clk 0:02:58]} 9. e5 {[%clk 0:02:09]}  d5 {[%clk 0:02:52]} 10. h5 {[%clk 0:02:10]}  g5 {[%clk 0:02:51]} 11. Nxg5 {[%clk 0:02:10]}  hxg5 {[%clk 0:02:51]} 12. Bxg5 {[%clk 0:02:11]}  f6 {[%clk 0:01:53]} 13. h6 {[%clk 0:01:52]}  fxg5 {[%clk 0:01:44]} 14. Qxg5 {[%clk 0:01:53]}  Rxh6 {[%clk 0:00:31]} 15. Rxh6 {[%clk 0:01:53]}  Bxh6 {[%clk 0:00:30]} 16. Qxh6 {[%clk 0:01:54]}  Nf8 {[%clk 0:00:30]} 17. Bd3 {[%clk 0:01:42]}  Kd7 {[%clk 0:00:16]} 18. Rh1 {[%clk 0:01:34]}  Nc6 {[%clk 0:00:12]} 19. Qf4 {[%clk 0:01:28]}  Nb4 {[%clk 0:00:09]} 20. Rh8 {[%clk 0:01:27]}  Nxd3+ {[%clk 0:00:07]} 21. cxd3 {[%clk 0:01:28]}  Kc6 {[%clk 0:00:07]} 22. Qxf8 {[%clk 0:01:21]}  Qg5+ {[%clk 0:00:07]} 23. f4 {[%clk 0:01:21]}  Qxg2 {[%clk 0:00:07]} 24. Qc5+ {[%clk 0:01:20]} 1-0


[Site "https://www.chess.com"]

[Event "Titled Tuesday Blitz February 15 Early 2022"]
[White "Nazari, Arad"]
[Black "Demin, Vladimir"]
[WhiteFideId "12577324"]
[BlackFideId "4167457"]
[WhiteElo "2120"]
[BlackElo "2498"]
[Result "0-1"]
[Round "09"]
[TimeControl "180+1"]
[Date "2022.02.15"]
[WhiteClock "0:00:04"]
[BlackClock "0:00:03"]

1. e4 {[%clk 0:03:00]}  Nf6 {[%clk 0:02:59]} 2. e5 {[%clk 0:02:55]}  Nd5 {[%clk 0:02:58]} 3. d4 {[%clk 0:02:54]}  d6 {[%clk 0:02:58]} 4. c4 {[%clk 0:02:55]}  Nb6 {[%clk 0:02:57]} 5. f4 {[%clk 0:02:56]}  dxe5 {[%clk 0:02:57]} 6. fxe5 {[%clk 0:02:57]}  Bf5 {[%clk 0:02:57]} 7. Nc3 {[%clk 0:02:57]}  e6 {[%clk 0:02:57]} 8. Be3 {[%clk 0:02:57]}  Bb4 {[%clk 0:02:56]} 9. Be2 {[%clk 0:02:57]}  O-O {[%clk 0:02:55]} 10. Nf3 {[%clk 0:02:57]}  c5 {[%clk 0:02:53]} 11. dxc5 {[%clk 0:02:54]}  Bxc3+ {[%clk 0:02:50]} 12. bxc3 {[%clk 0:02:51]}  Qxd1+ {[%clk 0:02:50]} 13. Rxd1 {[%clk 0:02:52]}  Na4 {[%clk 0:02:49]} 14. Bd4 {[%clk 0:02:46]}  Na6 {[%clk 0:02:41]} 15. Kf2 {[%clk 0:02:26]}  N6xc5 {[%clk 0:02:35]} 16. Ke3 {[%clk 0:02:27]}  Rac8 {[%clk 0:02:30]} 17. h3 {[%clk 0:02:18]}  b6 {[%clk 0:02:16]} 18. Rhf1 {[%clk 0:02:11]}  Ne4 {[%clk 0:01:56]} 19. Ng1 {[%clk 0:01:46]}  Naxc3 {[%clk 0:01:50]} 20. Bxc3 {[%clk 0:01:31]}  Nxc3 {[%clk 0:01:49]} 21. Rd4 {[%clk 0:01:31]}  Nxe2 {[%clk 0:01:39]} 22. Nxe2 {[%clk 0:01:26]}  Rc5 {[%clk 0:01:39]} 23. g4 {[%clk 0:01:22]}  Rxe5+ {[%clk 0:01:33]} 24. Kd2 {[%clk 0:01:17]}  Bg6 {[%clk 0:01:31]} 25. Rd7 {[%clk 0:01:15]}  Ra5 {[%clk 0:01:30]} 26. Nc3 {[%clk 0:01:13]}  Rc8 {[%clk 0:01:27]} 27. Rf4 {[%clk 0:01:13]}  h5 {[%clk 0:01:25]} 28. gxh5 {[%clk 0:01:08]}  Bxh5 {[%clk 0:01:25]} 29. Rfd4 {[%clk 0:01:04]}  Bg6 {[%clk 0:00:59]} 30. Rd8+ {[%clk 0:01:01]}  Rxd8 {[%clk 0:00:59]} 31. Rxd8+ {[%clk 0:01:02]}  Kh7 {[%clk 0:00:59]} 32. Rd7 {[%clk 0:00:55]}  f6 {[%clk 0:00:50]} 33. a4 {[%clk 0:00:51]}  Bf5 {[%clk 0:00:45]} 34. h4 {[%clk 0:00:50]}  Kg6 {[%clk 0:00:43]} 35. Ke3 {[%clk 0:00:48]}  Rc5 {[%clk 0:00:39]} 36. h5+ {[%clk 0:00:25]}  Kh6 {[%clk 0:00:38]} 37. Rxa7 {[%clk 0:00:19]}  Rxc4 {[%clk 0:00:38]} 38. Nb5 {[%clk 0:00:20]}  e5 {[%clk 0:00:26]} 39. Nd6 {[%clk 0:00:17]}  Rc3+ {[%clk 0:00:26]} 40. Ke2 {[%clk 0:00:18]}  Bg4+ {[%clk 0:00:22]} 41. Kd2 {[%clk 0:00:18]}  Ra3 {[%clk 0:00:22]} 42. Ne8 {[%clk 0:00:18]}  Bxh5 {[%clk 0:00:19]} 43. Nxg7 {[%clk 0:00:17]}  Bg6 {[%clk 0:00:19]} 44. Ne6 {[%clk 0:00:18]}  e4 {[%clk 0:00:15]} 45. Nf4 {[%clk 0:00:08]}  Kg5 {[%clk 0:00:14]} 46. Ne6+ {[%clk 0:00:08]}  Kf5 {[%clk 0:00:14]} 47. Nd4+ {[%clk 0:00:09]}  Ke5 {[%clk 0:00:13]} 48. Nc2 {[%clk 0:00:09]}  Ra2 {[%clk 0:00:12]} 49. Kc3 {[%clk 0:00:10]}  Kf4 {[%clk 0:00:11]} 50. Re7 {[%clk 0:00:09]}  Rxa4 {[%clk 0:00:07]} 51. Re6 {[%clk 0:00:10]}  Bf5 {[%clk 0:00:05]} 52. Rxf6 {[%clk 0:00:10]}  Ra5 {[%clk 0:00:05]} 53. Nd4 {[%clk 0:00:10]}  Rc5+ {[%clk 0:00:05]} 54. Kb4 {[%clk 0:00:08]}  e3 {[%clk 0:00:05]} 55. Rxb6 {[%clk 0:00:07]}  Rd5 {[%clk 0:00:03]} 56. Kc3 {[%clk 0:00:06]}  Rxd4 {[%clk 0:00:03]} 57. Kxd4 {[%clk 0:00:04]}  e2 {[%clk 0:00:03]} 0-1


[Site "https://www.chess.com"]

[Event "Titled Tuesday Blitz February 15 Early 2022"]
[White "Nesterov, Arseniy"]
[Black "Yang, Kaiqi"]
[WhiteFideId "24198455"]
[BlackFideId "8604398"]
[WhiteElo "2489"]
[BlackElo "2373"]
[Result "1-0"]
[Round "09"]
[TimeControl "180+1"]
[Date "2022.02.15"]
[WhiteClock "0:02:34"]
[BlackClock "0:02:18"]

1. d4 {[%clk 0:03:00]}  d5 {[%clk 0:02:59]} 2. c4 {[%clk 0:03:01]}  e6 {[%clk 0:02:59]} 3. Nc3 {[%clk 0:03:00]}  a6 {[%clk 0:02:59]} 4. cxd5 {[%clk 0:02:57]}  exd5 {[%clk 0:03:00]} 5. Nf3 {[%clk 0:02:58]}  Nf6 {[%clk 0:03:00]} 6. Bg5 {[%clk 0:02:57]}  Be6 {[%clk 0:03:00]} 7. Bxf6 {[%clk 0:02:58]}  Qxf6 {[%clk 0:03:00]} 8. Qb3 {[%clk 0:02:58]}  Ra7 {[%clk 0:02:56]} 9. g3 {[%clk 0:02:58]}  Nd7 {[%clk 0:02:27]} 10. Nxd5 {[%clk 0:02:36]}  Qd8 {[%clk 0:02:27]} 11. Qe3 {[%clk 0:02:34]}  Bb4+ {[%clk 0:02:18]} 12. Nxb4 {[%clk 0:02:34]} 1-0


[Site "https://www.chess.com"]

[Event "Titled Tuesday Blitz February 15 Early 2022"]
[White "Omariev, Maksim"]
[Black "Sarkar, Justin"]
[WhiteFideId "4193423"]
[BlackFideId "2010011"]
[WhiteElo "2516"]
[BlackElo "2038"]
[Result "1-0"]
[Round "09"]
[TimeControl "180+1"]
[Date "2022.02.15"]
[WhiteClock "0:00:21"]
[BlackClock "0:00:02"]

1. d4 {[%clk 0:03:00]}  Nf6 {[%clk 0:02:57]} 2. Bf4 {[%clk 0:02:59]}  d5 {[%clk 0:02:45]} 3. e3 {[%clk 0:02:59]}  g6 {[%clk 0:02:37]} 4. c4 {[%clk 0:02:54]}  Bg7 {[%clk 0:02:21]} 5. Nc3 {[%clk 0:02:54]}  O-O {[%clk 0:02:19]} 6. Nf3 {[%clk 0:02:53]}  c5 {[%clk 0:02:14]} 7. dxc5 {[%clk 0:02:52]}  Ne4 {[%clk 0:02:10]} 8. Be5 {[%clk 0:02:30]}  Bxe5 {[%clk 0:01:55]} 9. Nxe5 {[%clk 0:02:30]}  Nxc3 {[%clk 0:01:50]} 10. bxc3 {[%clk 0:02:31]}  Qa5 {[%clk 0:01:44]} 11. Qd4 {[%clk 0:02:16]}  f6 {[%clk 0:00:43]} 12. Nf3 {[%clk 0:01:12]}  Nc6 {[%clk 0:00:42]} 13. Qxd5+ {[%clk 0:01:12]}  Kg7 {[%clk 0:00:37]} 14. Qd2 {[%clk 0:00:47]}  Rd8 {[%clk 0:00:36]} 15. Qb2 {[%clk 0:00:43]}  Qxc5 {[%clk 0:00:28]} 16. Be2 {[%clk 0:00:41]}  Rb8 {[%clk 0:00:16]} 17. Nd4 {[%clk 0:00:34]}  e5 {[%clk 0:00:11]} 18. Nb3 {[%clk 0:00:28]}  Qe7 {[%clk 0:00:11]} 19. O-O {[%clk 0:00:28]}  Be6 {[%clk 0:00:11]} 20. Rfd1 {[%clk 0:00:28]}  b6 {[%clk 0:00:09]} 21. Qc2 {[%clk 0:00:27]}  Qf7 {[%clk 0:00:08]} 22. c5 {[%clk 0:00:22]}  Bxb3 {[%clk 0:00:02]} 23. axb3 {[%clk 0:00:23]}  bxc5 {[%clk 0:00:02]} 24. Bc4 {[%clk 0:00:23]}  Qe7 {[%clk 0:00:01]} 25. Rxd8 {[%clk 0:00:22]}  Rxd8 {[%clk 0:00:01]} 26. Qe2 {[%clk 0:00:23]}  Rd6 {[%clk 0:00:01]} 27. h4 {[%clk 0:00:23]}  Qd8 {[%clk 0:00:01]} 28. h5 {[%clk 0:00:24]}  g5 {[%clk 0:00:01]} 29. Qf3 {[%clk 0:00:24]}  Ne7 {[%clk 0:00:01]} 30. Rxa7 {[%clk 0:00:22]}  Rd1+ {[%clk 0:00:02]} 31. Kh2 {[%clk 0:00:22]}  Rd7 {[%clk 0:00:02]} 32. Ra6 {[%clk 0:00:21]}  Qc7 {[%clk 0:00:02]} 33. Qxf6# {[%clk 0:00:21]} 1-0


[Site "https://www.chess.com"]

[Event "Titled Tuesday Blitz February 15 Early 2022"]
[White "Petrova, Irina"]
[Black "Kraus, Tomas"]
[WhiteFideId "14124122"]
[BlackFideId "331708"]
[WhiteElo "1988"]
[BlackElo "2389"]
[Result "1-0"]
[Round "09"]
[TimeControl "180+1"]
[Date "2022.02.15"]
[WhiteClock "0:01:38"]
[BlackClock "0:01:48"]

1. e4 {[%clk 0:03:00]}  e6 {[%clk 0:02:54]} 2. d4 {[%clk 0:03:00]}  d5 {[%clk 0:02:53]} 3. Nc3 {[%clk 0:03:00]}  Bb4 {[%clk 0:02:53]} 4. Ne2 {[%clk 0:03:00]}  c5 {[%clk 0:02:48]} 5. a3 {[%clk 0:02:53]}  cxd4 {[%clk 0:02:46]} 6. axb4 {[%clk 0:02:49]}  dxc3 {[%clk 0:02:45]} 7. Nxc3 {[%clk 0:02:50]}  dxe4 {[%clk 0:02:44]} 8. Qxd8+ {[%clk 0:02:48]}  Kxd8 {[%clk 0:02:44]} 9. Nxe4 {[%clk 0:02:48]}  Nf6 {[%clk 0:02:43]} 10. Bg5 {[%clk 0:02:46]}  Ke7 {[%clk 0:02:40]} 11. Bd3 {[%clk 0:02:34]}  Nd7 {[%clk 0:02:31]} 12. O-O {[%clk 0:02:13]}  h6 {[%clk 0:02:30]} 13. Be3 {[%clk 0:02:07]}  a6 {[%clk 0:02:21]} 14. b5 {[%clk 0:01:54]}  Nd5 {[%clk 0:02:01]} 15. Bd2 {[%clk 0:01:41]}  N7f6 {[%clk 0:01:54]} 16. Nxf6 {[%clk 0:01:39]}  g6 {[%clk 0:01:48]} 17. Nxd5+ {[%clk 0:01:38]} 1-0


[Site "https://www.chess.com"]

[Event "Titled Tuesday Blitz February 15 Early 2022"]
[White "Pires, Marcos Vinicius Torsani"]
[Black "Mosutha, Thuso"]
[WhiteFideId "2118939"]
[BlackFideId "11302550"]
[WhiteElo "2273"]
[BlackElo "2028"]
[Result "0-1"]
[Round "09"]
[TimeControl "180+1"]
[Date "2022.02.15"]
[WhiteClock "0:00:52"]
[BlackClock "0:01:05"]

1. e4 {[%clk 0:03:00]}  e6 {[%clk 0:03:00]} 2. c4 {[%clk 0:02:58]}  d5 {[%clk 0:03:00]} 3. exd5 {[%clk 0:02:52]}  exd5 {[%clk 0:03:01]} 4. cxd5 {[%clk 0:02:53]}  Qxd5 {[%clk 0:03:02]} 5. Nc3 {[%clk 0:02:44]}  Qe5+ {[%clk 0:03:01]} 6. Be2 {[%clk 0:02:42]}  Nf6 {[%clk 0:02:51]} 7. d4 {[%clk 0:02:41]}  Qa5 {[%clk 0:02:50]} 8. Nf3 {[%clk 0:02:41]}  Be7 {[%clk 0:02:46]} 9. O-O {[%clk 0:02:41]}  O-O {[%clk 0:02:46]} 10. h3 {[%clk 0:02:41]}  Nc6 {[%clk 0:02:40]} 11. Bc4 {[%clk 0:02:34]}  Qh5 {[%clk 0:02:27]} 12. Ne5 {[%clk 0:02:25]}  Qxd1 {[%clk 0:02:09]} 13. Rxd1 {[%clk 0:02:26]}  Na5 {[%clk 0:02:03]} 14. Be2 {[%clk 0:02:23]}  Bd6 {[%clk 0:02:00]} 15. f4 {[%clk 0:02:21]}  b6 {[%clk 0:01:56]} 16. Bf3 {[%clk 0:02:16]}  Bb7 {[%clk 0:01:56]} 17. Bxb7 {[%clk 0:02:11]}  Nxb7 {[%clk 0:01:57]} 18. Nb5 {[%clk 0:02:09]}  a6 {[%clk 0:01:53]} 19. Nxd6 {[%clk 0:02:08]}  cxd6 {[%clk 0:01:54]} 20. Nc4 {[%clk 0:02:05]}  b5 {[%clk 0:01:53]} 21. Ne3 {[%clk 0:01:50]}  d5 {[%clk 0:01:52]} 22. f5 {[%clk 0:01:47]}  Nd6 {[%clk 0:01:50]} 23. g4 {[%clk 0:01:46]}  h6 {[%clk 0:01:48]} 24. Bd2 {[%clk 0:01:46]}  Rfe8 {[%clk 0:01:43]} 25. Re1 {[%clk 0:01:46]}  Nc4 {[%clk 0:01:36]} 26. Nxc4 {[%clk 0:01:46]}  dxc4 {[%clk 0:01:36]} 27. Bf4 {[%clk 0:01:43]}  Nd5 {[%clk 0:01:35]} 28. Bd2 {[%clk 0:01:39]}  Red8 {[%clk 0:01:31]} 29. Re5 {[%clk 0:01:35]}  f6 {[%clk 0:01:22]} 30. Re6 {[%clk 0:01:33]}  Kf7 {[%clk 0:01:22]} 31. Rae1 {[%clk 0:01:32]}  b4 {[%clk 0:01:20]} 32. Rc6 {[%clk 0:01:29]}  Rac8 {[%clk 0:01:17]} 33. Ree6 {[%clk 0:01:20]}  a5 {[%clk 0:01:14]} 34. Kf2 {[%clk 0:01:16]}  Ne7 {[%clk 0:01:10]} 35. Rc5 {[%clk 0:01:10]}  Rxc5 {[%clk 0:01:10]} 36. dxc5 {[%clk 0:00:54]}  Rxd2+ {[%clk 0:01:10]} 37. Ke3 {[%clk 0:00:54]}  Rd5 {[%clk 0:01:05]} 38. c6 {[%clk 0:00:52]}  Rc5 {[%clk 0:01:05]} 0-1


[Site "https://www.chess.com"]

[Event "Titled Tuesday Blitz February 15 Early 2022"]
[White "Politov, Pavel Y."]
[Black "Araujo Filho, Luiz Antonio Coel"]
[WhiteFideId "24110515"]
[BlackFideId "2130661"]
[WhiteElo "2090"]
[BlackElo "2192"]
[Result "0-1"]
[Round "09"]
[TimeControl "180+1"]
[Date "2022.02.15"]
[WhiteClock "0:00:01"]
[BlackClock "0:00:25"]

1. e4 {[%clk 0:03:00]}  c6 {[%clk 0:02:59]} 2. d4 {[%clk 0:03:00]}  d5 {[%clk 0:03:00]} 3. e5 {[%clk 0:02:59]}  Bf5 {[%clk 0:02:59]} 4. g4 {[%clk 0:02:58]}  Bd7 {[%clk 0:03:00]} 5. Nc3 {[%clk 0:02:50]}  e6 {[%clk 0:03:00]} 6. Be3 {[%clk 0:02:45]}  c5 {[%clk 0:02:57]} 7. Nge2 {[%clk 0:02:26]}  Nc6 {[%clk 0:02:55]} 8. f4 {[%clk 0:01:03]}  Be7 {[%clk 0:02:42]} 9. dxc5 {[%clk 0:00:34]}  Qa5 {[%clk 0:02:30]} 10. Qd2 {[%clk 0:00:24]}  Bxc5 {[%clk 0:02:22]} 11. Nd4 {[%clk 0:00:18]}  Nge7 {[%clk 0:02:08]} 12. O-O-O {[%clk 0:00:12]}  a6 {[%clk 0:02:02]} 13. Bg2 {[%clk 0:00:08]}  Bb4 {[%clk 0:01:52]} 14. Rhf1 {[%clk 0:00:05]}  Rc8 {[%clk 0:01:50]} 15. a3 {[%clk 0:00:04]}  Bxa3 {[%clk 0:01:18]} 16. bxa3 {[%clk 0:00:04]}  Qxa3+ {[%clk 0:01:19]} 17. Kb1 {[%clk 0:00:04]}  Nb4 {[%clk 0:01:20]} 18. Nb3 {[%clk 0:00:03]}  Ba4 {[%clk 0:01:13]} 19. Bd4 {[%clk 0:00:02]}  Nec6 {[%clk 0:01:05]} 20. Bc5 {[%clk 0:00:02]}  Bxb3 {[%clk 0:00:48]} 21. cxb3 {[%clk 0:00:02]}  Qxb3+ {[%clk 0:00:43]} 22. Qb2 {[%clk 0:00:03]}  Qc4 {[%clk 0:00:44]} 23. Bf2 {[%clk 0:00:02]}  O-O {[%clk 0:00:31]} 24. Rd2 {[%clk 0:00:01]}  Nd3 {[%clk 0:00:25]} 0-1


[Site "https://www.chess.com"]